bitfinex-derivatives/quotes_SOLF0:USTF0_20260211
["timestamp","ask_amount","ask_price","bid_price","bid_amount"]
[1770849342586,5.90115475,79.839,79.78,4.00926827]
[1770849343285,5.90115475,79.839,79.798,11.2868]
[1770849345786,5.82849444,79.829,79.79,4.00926827]
[1770849345988,5.82849444,79.819,79.76,4.00926827]
[1770849346289,5.82849444,79.809,79.765,11.2915]
[1770849350283,5.79598955,79.804,79.758,11.2925]
[1770849351789,4.00926827,79.8,79.758,11.2925]
[1770849352682,17.12864863,79.803,79.758,11.2925]
[1770849352883,17.12864863,79.803,79.762,11.292]
[1770849353491,5.84234863,79.802,79.762,11.292]
[1770849355492,4.00926827,79.8,79.762,11.292]
[1770849356986,9.85940822,79.8,79.762,11.292]
[1770849358390,4.00926827,79.8,79.75,4.00926827]
[1770849358590,5.84024074,79.809,79.75,4.00926827]
[1770849358994,11.286,79.805,79.764,11.2916]
[1770849359597,17.12338748,79.805,79.764,11.2916]
[1770849360297,11.2862,79.803,79.764,11.2916]
[1770849360496,17.12363897,79.803,79.764,11.2916]
[1770849360797,17.06397536,79.801,79.764,11.2916]
[1770849361188,5.77737536,79.8,79.764,11.2916]
[1770849364386,9.51450724,79.799,79.764,11.2916]
[1770849364590,5.77737536,79.8,79.764,11.2916]
[1770849365200,9.51627373,79.799,79.764,11.2916]
[1770849365400,9.51627373,79.798,79.764,11.2916]
[1770849365702,9.51627373,79.797,79.764,11.2916]
[1770849365899,11.2868,79.799,79.764,11.2916]
[1770849366097,9.51726286,79.798,79.764,11.2916]
[1770849366301,9.51726286,79.797,79.764,11.2916]
[1770849366496,9.51726286,79.796,79.764,11.2916]
[1770849366712,11.2868,79.799,79.764,11.2916]
[1770849366912,9.52447623,79.798,79.764,11.2916]
[1770849367212,9.52447623,79.797,79.764,11.2916]
[1770849367411,9.52447623,79.796,79.764,11.2916]
[1770849367608,9.52447623,79.795,79.764,11.2916]
[1770849367800,9.52447623,79.794,79.764,11.2916]
[1770849368005,11.2868,79.799,79.764,11.2916]
[1770849368204,9.5388276,79.798,79.764,11.2916]
[1770849368409,11.2868,79.799,79.764,11.2916]
[1770849368410,9.5388276,79.797,79.764,11.2916]
[1770849368603,9.5388276,79.796,79.764,11.2916]
[1770849368810,9.5388276,79.795,79.764,11.2916]
[1770849369009,9.5388276,79.794,79.764,11.2916]
[1770849369212,9.5388276,79.793,79.764,11.2916]
[1770849369407,9.5388276,79.792,79.764,11.2916]
[1770849369608,9.5388276,79.791,79.764,11.2916]
[1770849369808,9.5388276,79.79,79.764,11.2916]
[1770849370012,9.5388276,79.789,79.764,11.2916]
[1770849370213,9.5388276,79.788,79.764,11.2916]
[1770849370406,9.5388276,79.787,79.764,11.2916]
[1770849370606,9.5388276,79.786,79.764,11.2916]
[1770849370805,9.5388276,79.785,79.764,11.2916]
[1770849371001,5.74270939,79.798,79.764,11.2916]
[1770849371214,5.74270939,79.796,79.764,11.2916]
[1770849371512,9.56309853,79.795,79.764,11.2916]
[1770849371709,9.56309853,79.794,79.764,11.2916]
[1770849371914,9.56309853,79.793,79.764,11.2916]
[1770849372210,9.56309853,79.792,79.764,11.2916]
[1770849372412,9.56309853,79.791,79.764,11.2916]
[1770849372611,9.56309853,79.79,79.764,11.2916]
[1770849372813,9.56309853,79.789,79.764,11.2916]
[1770849373014,9.56309853,79.788,79.764,11.2916]
[1770849373202,9.56309853,79.787,79.764,11.2916]
[1770849373403,9.56309853,79.786,79.764,11.2916]
[1770849373607,5.74270939,79.796,79.764,11.2916]
[1770849373811,15.30420604,79.795,79.764,11.2916]
[1770849374010,9.56337893,79.794,79.764,11.2916]
[1770849374212,9.56337893,79.793,79.764,11.2916]
[1770849374413,9.56337893,79.792,79.764,11.2916]
[1770849374611,9.56337893,79.791,79.764,11.2916]
[1770849374805,9.56337893,79.79,79.764,11.2916]
[1770849375011,9.56337893,79.789,79.764,11.2916]
[1770849375220,9.56337893,79.788,79.764,11.2916]
[1770849375413,9.56337893,79.787,79.764,11.2916]
[1770849375614,5.74082711,79.795,79.764,11.2916]
[1770849375815,9.56083097,79.794,79.764,11.2916]
[1770849376114,9.56083097,79.793,79.764,11.2916]
[1770849376315,9.56083097,79.792,79.764,11.2916]
[1770849376516,9.56083097,79.791,79.764,11.2916]
[1770849376817,9.56083097,79.79,79.764,11.2916]
[1770849377012,9.56083097,79.789,79.764,11.2916]
[1770849377316,9.56083097,79.788,79.764,11.2916]
[1770849377516,9.56083097,79.787,79.764,11.2916]
[1770849377718,5.74082711,79.795,79.768,11.291]
[1770849377911,9.56406961,79.794,79.768,11.291]
[1770849378112,9.56406961,79.793,79.768,11.291]
[1770849378317,9.56406961,79.792,79.768,11.291]
[1770849378620,9.56406961,79.791,79.762,11.2919]
[1770849378917,9.56406961,79.79,79.762,11.2919]
[1770849379118,9.56406961,79.789,79.762,11.2919]
[1770849379415,2.144e-05,79.806,79.78,4.02278133]
[1770849379617,10.51441141,79.826,79.78,4.02278133]
[1770849380820,10.51441141,79.826,79.794,11.2873]
[1770849382414,10.51441141,79.826,79.787,11.2883]
[1770849382617,4.02278133,79.8,79.75,4.02278133]
[1770849382918,10.55300428,79.799,79.75,4.02278133]
[1770849383817,10.55300428,79.799,79.762,11.2919]
[1770849384911,10.52719883,79.793,79.75,4.02278133]
[1770849385419,10.52719883,79.789,79.73,4.02278133]
[1770849386720,11.2884,79.788,79.749,11.2938]
[1770849386918,10.52172613,79.787,79.749,11.2938]
[1770849387619,11.2915,79.766,79.726,11.2971]
[1770849387824,4.02278133,79.76,79.699,22.6018]
[1770849388020,10.52177738,79.759,79.71,4.02278133]
[1770849388222,10.52177738,79.759,79.725,11.2972]
[1770849389121,21.81427738,79.759,79.716,11.2984]
[1770849389312,4.02278133,79.76,79.716,11.2984]
[1770849389313,10.47936604,79.758,79.716,11.2984]
[1770849390614,10.47942478,79.747,79.696,2.18226969]
[1770849390819,175.5772,79.797,79.67,4.02278133]
[1770849390820,10.4412153,79.729,79.67,4.02278133]
[1770849391020,10.4412153,79.719,79.67,4.02278133]
[1770849391223,10.4412153,79.719,79.678,11.3038]
[1770849394719,10.4412153,79.719,79.669,11.3051]
[1770849395830,10.50320127,79.717,79.669,11.3051]
[1770849396921,10.51240911,79.709,79.656,2.18349516]
[1770849397231,10.51240911,79.689,79.64,4.02278133]
[1770849397726,10.51240911,79.687,79.643,11.3088]
[1770849398321,10.51247011,79.684,79.634,11.3101]
[1770849398629,4.02278133,79.67,79.62,4.02278133]
[1770849399229,10.48403482,79.707,79.65,4.02278133]
[1770849399435,10.48403482,79.72,79.67,4.02278133]
[1770849399631,10.48403482,79.72,79.688,11.3024]
[1770849399831,10.48408798,79.739,79.7,4.02278133]
[1770849400024,10.48408798,79.759,79.7,4.02278133]
[1770849400233,10.48408798,79.756,79.709,11.2994]
[1770849400428,10.48408798,79.756,79.71,4.02278133]
[1770849400927,10.48408798,79.756,79.721,11.2977]
[1770849401334,10.48408798,79.756,79.72,4.02278133]
[1770849402638,10.48408798,79.756,79.722,11.2976]
[1770849403934,10.48408798,79.756,79.72,4.02278133]
[1770849405739,10.48408798,79.756,79.721,11.2977]
[1770849407135,10.70869931,79.783,79.73,4.02278133]
[1770849407936,10.70869931,79.783,79.74,4.02278133]
[1770849408336,10.70878314,79.796,79.76,4.02278133]
[1770849409533,10.71110927,79.816,79.77,4.02278133]
[1770849410042,10.71110927,79.816,79.76,4.02278133]
[1770849410244,10.71118612,79.809,79.76,4.02278133]
[1770849411732,10.71118612,79.809,79.77,4.02278133]
[1770849413344,10.71118612,79.809,79.78,4.02278133]
[1770849413647,10.71118612,79.809,79.772,11.2906]
[1770849414737,10.71118612,79.809,79.77,4.02278133]
[1770849414949,10.71118612,79.809,79.75,10.77165511]
[1770849415742,10.71118612,79.809,79.769,11.2909]
[1770849421052,10.70259861,79.806,79.76,11.2922]
[1770849422353,10.70259861,79.806,79.767,11.2912]
[1770849423351,10.70259861,79.806,79.75,10.77165511]
[1770849424558,10.70031899,79.818,79.75,10.77165511]
[1770849424956,10.70031899,79.818,79.75,10.77006273]
[1770849425861,10.70031899,79.818,79.774,11.2902]
[1770849426560,11.2843,79.817,79.774,11.2902]
[1770849426759,10.72004676,79.816,79.774,11.2902]
[1770849430465,11.2845,79.815,79.774,11.2902]
[1770849430659,10.69525031,79.814,79.774,11.2902]
[1770849431558,10.69525031,79.814,79.78,11.2894]
[1770849434966,10.85724637,79.826,79.79,4.01952709]
[1770849435777,10.85724637,79.826,79.787,11.2884]
[1770849437377,10.85724637,79.826,79.79,4.01952709]
[1770849439678,10.86489769,79.822,79.791,11.2878]
[1770849440267,10.86489769,79.822,79.77,4.01952709]
[1770849440673,10.86496986,79.819,79.77,4.01952709]
[1770849441569,10.86496986,79.819,79.745,103.32]
[1770849441570,10.85424481,79.835,79.79,4.01952709]
[1770849441769,10.85424481,79.835,79.8,4.01952709]
[1770849442776,10.85424481,79.835,79.807,11.2855]
[1770849443677,4.01952709,79.89,79.821,0.49349979]
[1770849443878,4.01952709,79.9,79.85,4.01952709]
[1770849444077,9.32608259,79.899,79.85,4.01952709]
[1770849444383,9.33884463,79.898,79.85,4.01952709]
[1770849444585,9.33884463,79.897,79.85,4.01952709]
[1770849444881,9.33884463,79.896,79.85,4.01952709]
[1770849445080,9.33884463,79.895,79.85,4.01952709]
[1770849445283,103.98,79.909,79.85,4.01952709]
[1770849445478,9.33538556,79.908,79.86,15.29762709]
[1770849445685,5.46661416,79.906,79.86,15.67740857]
[1770849445876,5.46661416,79.904,79.86,15.67740857]
[1770849446081,5.46661416,79.902,79.86,15.67740857]
[1770849449682,5.42831042,79.901,79.86,4.39930857]
[1770849450780,4.01952709,79.9,79.851,11.2793]
[1770849450985,5.42973991,79.896,79.851,11.2793]
[1770849453279,5.42973991,79.896,79.851,11.9022109]
[1770849461187,5.42973991,79.896,79.857,0.64726806]
[1770849462592,10.74933129,79.92,79.861,0.6513331]
[1770849462593,5.42831042,79.917,79.861,0.6513331]
[1770849463994,5.42831042,79.915,79.873,11.2763]
[1770849464692,5.42831042,79.915,79.873,11.93058818]
[1770849465086,5.42831042,79.915,79.874,0.58128079]
[1770849467996,5.42831042,79.914,79.874,0.58128079]
[1770849469691,5.42831042,79.912,79.874,0.58128079]
[1770849471296,5.45536686,79.908,79.874,0.58128079]
[1770849475102,5.45536686,79.907,79.874,0.58128079]
[1770849475603,5.45536686,79.899,79.85,4.72290911]
[1770849475902,5.45536686,79.898,79.856,11.2786]
[1770849476698,5.45536686,79.896,79.856,11.2786]
[1770849477102,5.45536686,79.896,79.862,11.2778]
[1770849477496,5.45536686,79.896,79.851,0.71119798]
[1770849478696,5.45536686,79.894,79.855,11.2787]
[1770849480495,4.01132091,79.88,79.829,0.91340535]
[1770849480694,5.45536686,79.859,79.818,0.91340535]
[1770849480898,5.45536686,79.839,79.79,4.01132091]
[1770849481102,5.45536686,79.829,79.78,4.01132091]
[1770849481494,5.45536686,79.829,79.771,12.52]
[1770849481495,5.45536686,79.829,79.772,0.91754633]
[1770849481708,5.45536686,79.839,79.791,0.91724191]
[1770849482995,11.2813,79.838,79.795,0.78016763]
[1770849483197,16.73666686,79.838,79.795,0.78016763]
[1770849483702,5.45536686,79.837,79.795,0.78016763]
[1770849484802,5.45536686,79.837,79.794,11.2874]
[1770849485408,5.45536686,79.837,79.801,0.69553345]
[1770849486008,5.45536686,79.849,79.813,11.2848]
[1770849486309,5.45536686,79.849,79.814,0.69517073]
[1770849487205,5.45536686,79.879,79.83,4.01709678]
[1770849487407,5.45536686,79.879,79.831,0.66892437]
[1770849488007,5.45536686,79.879,79.835,11.2816]
[1770849491210,5.58627449,79.909,79.86,4.01709678]
[1770849491412,5.58627449,79.907,79.86,4.01709678]
[1770849491608,5.58627449,79.905,79.86,4.01709678]
[1770849492009,5.58649864,79.899,79.84,4.01709678]
[1770849492309,5.58649864,79.897,79.85,4.01709678]
[1770849492506,5.58649864,79.897,79.862,11.2777]
[1770849494417,5.58649864,79.897,79.852,11.2791]
[1770849495012,5.58649864,79.897,79.86,4.01709678]
[1770849497318,5.55569686,79.909,79.861,0.41699137]
[1770849497520,9.35864239,79.908,79.863,11.69763059]
[1770849497719,16.82689686,79.909,79.863,11.69763059]
[1770849497916,5.55589867,79.908,79.863,11.69763059]
[1770849500214,5.55589867,79.908,79.867,11.2771]
[1770849500420,5.55589867,79.908,79.871,0.42524559]
[1770849501619,5.55589867,79.908,79.873,11.2762]
[1770849502420,5.55727383,79.905,79.864,11.2775]
[1770849503221,15.29789526,79.936,79.85,4.01709678]
[1770849503222,5.5331671,79.899,79.85,4.01709678]
[1770849504723,5.5331671,79.896,79.857,11.2785]
[1770849506722,5.5331671,79.894,79.857,11.2785]
[1770849509918,5.44848916,79.889,79.84,4.01709678]
[1770849510120,5.44848916,79.869,79.82,4.01709678]
[1770849510314,5.44848916,79.869,79.813,0.98006738]
[1770849510618,4.01709678,79.86,79.813,0.98006738]
[1770849510821,5.44848916,79.859,79.813,0.98006738]
[1770849511418,5.44848916,79.859,79.827,11.2827]
[1770849512725,5.44848916,79.871,79.828,1.20894236]
[1770849513022,5.44848916,79.869,79.828,1.20894236]
[1770849513617,5.44848916,79.866,79.828,1.20894236]
[1770849514120,5.44848916,79.866,79.829,11.2824]
[1770849514324,5.44848916,79.866,79.83,5.22591215]
[1770849514525,5.44848916,79.866,79.831,1.20859501]
[1770849514921,5.44848916,79.864,79.825,11.2831]
[1770849515724,5.44848916,79.862,79.825,11.2831]
[1770849516426,4.01709678,79.86,79.825,11.2831]
[1770849516628,5.44848916,79.859,79.825,11.2831]
[1770849521524,11.2768,79.87,79.831,12.39329269]
[1770849521730,11.2768,79.87,79.832,1.11119269]
[1770849522626,5.44848916,79.867,79.832,1.11119269]
[1770849522833,5.44848916,79.867,79.824,11.2831]
[1770849523825,5.44848916,79.865,79.824,11.2831]
[1770849524727,14.84952146,79.889,79.831,1.11592712]
[1770849524927,5.44848916,79.887,79.831,1.11592712]
[1770849525729,16.72368916,79.881,79.836,12.42016743]
[1770849526032,5.44848916,79.879,79.836,12.42016743]
[1770849526741,11.2759,79.876,79.836,12.42016743]
[1770849526932,5.44848916,79.875,79.836,12.42016743]
[1770849527822,5.44848916,79.875,79.836,11.2814]
[1770849528228,103.6,79.904,79.825,1.14049937]
[1770849528229,5.44848916,79.869,79.825,1.14049937]
[1770849529735,5.44848916,79.867,79.826,11.2828]
[1770849530933,5.2280593,79.865,79.826,11.2828]
[1770849531536,5.2280593,79.862,79.826,11.2828]
[1770849533738,5.22973127,79.857,79.825,1.14049937]
[1770849534031,5.22973127,79.857,79.819,11.2839]
[1770849534630,11.2789,79.855,79.819,11.2839]
[1770849534828,5.20729465,79.849,79.813,12.36394935]
[1770849535837,5.20729465,79.849,79.813,11.2847]
[1770849539540,5.20729465,79.849,79.818,11.284]
[1770849540143,5.20729465,79.847,79.812,11.2849]
[1770849540535,5.20729465,79.847,79.802,1.19028858]
[1770849541739,5.20729465,79.847,79.817,11.2841]
[1770849546441,115.23789526,79.88,79.8,4.01709678]
[1770849546442,5.25745707,79.842,79.8,1.02247013]
[1770849547445,4.01709678,79.84,79.8,1.02247013]
[1770849547642,5.27027038,79.837,79.787,0.99656843]
[1770849547942,5.27026233,79.835,79.787,0.99656843]
[1770849548241,5.27026233,79.833,79.787,0.99656843]
[1770849548438,5.27026233,79.831,79.787,0.99656843]
[1770849548639,5.27026233,79.829,79.787,0.99656843]
[1770849548839,5.27026233,79.829,79.795,11.2872]
[1770849549242,5.2111814,79.827,79.795,11.2872]
[1770849549445,15.30234884,79.83,79.795,11.2872]
[1770849549446,5.2111814,79.825,79.795,11.2872]
[1770849549644,5.2111814,79.823,79.795,11.2872]
[1770849550246,5.21117836,79.807,79.761,1.11447249]
[1770849550546,5.21117836,79.817,79.761,1.11447249]
[1770849550746,5.21117836,79.815,79.761,1.11447249]
[1770849550948,14.61731011,79.814,79.761,1.11447249]
[1770849551146,9.41001546,79.813,79.761,1.11447249]
[1770849551335,9.41001546,79.812,79.761,1.11447249]
[1770849551539,9.41001546,79.811,79.761,1.11447249]
[1770849551735,11.2855,79.808,79.77,1.16187177]
[1770849552137,5.20729465,79.807,79.76,4.01994884]
[1770849552337,11.2895,79.78,79.741,1.16187177]
[1770849552545,5.20729465,79.779,79.741,1.16187177]
[1770849553341,5.20729465,79.779,79.742,0.23697991]
[1770849555043,5.74574262,79.769,79.73,0.04501553]
[1770849555548,9.76569146,79.76,79.719,0.04501553]
[1770849557246,5.74574262,79.76,79.719,0.04501553]
[1770849557447,11.2897,79.779,79.731,0.1053045]
[1770849558848,11.2897,79.779,79.732,11.2962]
[1770849562644,4.01994884,79.78,79.741,0.04825915]
[1770849562854,5.71557046,79.784,79.741,0.04825915]
[1770849563646,5.71557046,79.784,79.744,0.04816354]
[1770849563847,5.71557046,79.784,79.74,4.01994884]
[1770849563848,5.74465349,79.781,79.741,0.04817947]
[1770849564849,5.76691766,79.792,79.741,0.04817947]
[1770849565152,5.76691766,79.789,79.746,11.2942]
[1770849566855,5.76691766,79.789,79.747,0.28241985]
[1770849567458,5.76691766,79.789,79.749,0.28024131]
[1770849568964,5.76691766,79.789,79.75,11.2936]
[1770849569168,5.63808056,79.822,79.78,4.01994884]
[1770849569363,5.63808056,79.822,79.78,4.27828891]
[1770849569568,5.63808056,79.839,79.8,4.01994884]
[1770849569771,5.63808056,79.839,79.801,0.2582087]
[1770849570566,5.63808056,79.839,79.803,11.2861]
[1770849571665,5.63808056,79.839,79.81,11.2851]
[1770849572975,5.63808056,79.839,79.753,37.64]
[1770849572976,5.66948311,79.879,79.831,0.19480105]
[1770849573178,5.66948311,79.899,79.85,4.01994884]
[1770849574067,5.66948311,79.899,79.853,11.279]
[1770849574975,5.66948311,79.899,79.853,11.5132939]
[1770849575873,5.66948311,79.899,79.861,11.2779]
[1770849578673,5.66948311,79.899,79.853,0.2342939]
[1770849580076,5.66948311,79.899,79.86,11.2781]
[1770849581069,5.68782009,79.927,79.879,0.15657882]
[1770849582684,5.68782009,79.927,79.897,11.2729]
[1770849583086,5.72560904,79.939,79.897,11.2729]
[1770849583772,5.72560904,79.939,79.88,10.74869635]
[1770849583773,9.04e-06,79.939,79.898,0.08046187]
[1770849584590,99.96,79.967,79.898,0.08046187]
[1770849584776,11.2642,79.959,79.903,11.272]
[1770849584980,11.2642,79.959,79.904,5.30918948]
[1770849585484,11.2642,79.959,79.913,11.2706]
[1770849585880,5.3736863,79.971,79.92,11.2695]
[1770849586087,5.3736863,79.971,79.921,5.30918948]
[1770849586479,5.3736863,79.996,79.946,11.2659]
[1770849586679,5.3736863,79.996,79.935,5.30918948]
[1770849587287,2.1760064,80.035,79.935,5.30918948]
[1770849587288,5.3736863,79.994,79.936,11.2673]
[1770849587879,5.3736863,79.994,79.887,175.3776]
[1770849587880,5.3736863,79.979,79.897,5.30918948]
[1770849588083,5.3736863,79.977,79.897,5.30918948]
[1770849588285,5.3736863,79.975,79.897,5.30918948]
[1770849588791,5.3736863,79.959,79.908,11.2713]
[1770849591800,5.5436413,79.953,79.884,5.38794254]
[1770849592289,5.5436413,79.933,79.885,11.2746]
[1770849594986,5.5436413,79.933,79.886,5.61220962]
[1770849596693,11.2681,79.931,79.886,5.61220962]
[1770849599593,11.2691,79.925,79.886,5.61220962]
[1770849600195,5.5436413,79.917,79.877,11.2757]
[1770849600405,5.5436413,79.917,79.841,135.0]
[1770849600703,99.88,79.966,79.86,10.74869635]
[1770849601002,5.5436413,79.943,79.894,5.66117131]
[1770849602795,11.2677,79.935,79.894,5.66117131]
[1770849605199,16.8113413,79.935,79.894,5.66117131]
[1770849609104,11.2682,79.931,79.894,5.66117131]
[1770849610895,5.5436413,79.934,79.898,11.2727]
[1770849611100,9.47447404,79.966,79.921,5.68487181]
[1770849611295,9.47447404,79.966,79.858,175.442]
[1770849611296,5.5436413,79.972,79.931,5.68487181]
[1770849611497,5.5436413,79.972,79.94,11.2668]
[1770849611793,11.2609,79.983,79.941,5.68487181]
[1770849612212,11.2618,79.976,79.941,5.68487181]
[1770849612413,4.00947376,79.98,79.941,5.68487181]
[1770849613104,5.5436413,79.979,79.93,4.00947376]
[1770849613309,5.5436413,79.974,79.926,5.68487181]
[1770849613895,5.5436413,79.969,79.928,11.2684]
[1770849614605,4.00947376,79.95,79.912,5.68487181]
[1770849614809,5.5436413,79.948,79.9,9.69434557]
[1770849615011,5.5436413,79.948,79.9,5.68487181]
[1770849615212,5.5436413,79.946,79.9,5.68487181]
[1770849615504,5.5436413,79.944,79.9,5.68487181]
[1770849615701,5.5436413,79.944,79.901,11.2723]
[1770849616211,5.5436413,79.942,79.901,11.2723]
[1770849616410,9.57580329,79.941,79.901,11.2723]
[1770849616706,9.57580329,79.94,79.901,11.2723]
[1770849616898,5.5436413,79.942,79.901,11.2723]
[1770849617101,9.57579958,79.941,79.901,11.2723]
[1770849617303,9.57579958,79.94,79.901,11.2723]
[1770849617503,9.57579958,79.939,79.901,11.2723]
[1770849617707,9.57579958,79.938,79.901,11.2723]
[1770849617999,9.57579958,79.937,79.901,11.2723]
[1770849618207,9.57579958,79.936,79.901,11.2723]
[1770849618412,9.57579958,79.935,79.901,11.2723]
[1770849618610,9.57579958,79.934,79.901,11.2723]
[1770849618812,9.57579958,79.933,79.901,11.2723]
[1770849619010,9.57579958,79.932,79.901,11.2723]
[1770849619212,9.57579958,79.931,79.901,11.2723]
[1770849619412,9.57579958,79.93,79.901,11.2723]
[1770849619712,9.57579958,79.929,79.901,11.2723]
[1770849619910,5.5436413,79.942,79.901,11.2723]
[1770849620105,15.14723199,79.941,79.901,11.2723]
[1770849620308,9.60359069,79.94,79.901,11.2723]
[1770849620612,9.60359069,79.939,79.901,11.2723]
[1770849620909,9.60359069,79.938,79.901,11.2723]
[1770849621107,5.5436413,79.941,79.901,11.2723]
[1770849621307,9.61179622,79.94,79.901,16.89287605]
[1770849621506,9.61179622,79.939,79.908,11.2712]
[1770849621710,9.61179622,79.939,79.901,5.62057605]
[1770849621711,9.61179622,79.938,79.901,5.62057605]
[1770849622012,9.61179622,79.937,79.901,5.62057605]
[1770849622212,9.61179622,79.936,79.905,5.62057605]
[1770849622420,9.61179622,79.935,79.905,5.62057605]
[1770849622608,9.61586603,79.934,79.891,5.62057605]
[1770849622809,9.61586603,79.933,79.891,5.62057605]
[1770849623010,9.61586603,79.932,79.891,5.62057605]
[1770849623211,9.61586603,79.931,79.896,11.273]
[1770849623407,9.61586603,79.93,79.896,11.273]
[1770849623610,9.61586603,79.929,79.896,11.273]
[1770849623812,11.266,79.946,79.869,99.86]
[1770849623813,5.26042693,79.959,79.92,4.00947376]
[1770849624614,5.26042693,79.959,79.874,37.64]
[1770849624615,5.26042693,79.959,79.921,5.62057605]
[1770849626309,11.2638,79.962,79.923,5.62057605]
[1770849627306,11.2638,79.962,79.925,5.62057605]
[1770849627511,5.26042693,79.971,79.925,5.62057605]
[1770849628723,11.2627,79.97,79.928,11.2685]
[1770849629019,11.2627,79.97,79.928,16.86835457]
[1770849629223,11.2627,79.97,79.928,5.59985457]
[1770849629224,5.8278228,79.969,79.928,5.59985457]
[1770849629416,11.2631,79.967,79.928,5.59985457]
[1770849630420,5.8278228,79.969,79.929,5.59985457]
[1770849631421,5.8278228,79.969,79.93,11.2682]
[1770849632024,5.8278228,79.969,79.93,15.27767376]
[1770849632228,11.2621,79.974,79.934,5.59985457]
[1770849632425,5.8278228,79.973,79.934,5.59985457]
[1770849633817,5.8278228,79.973,79.935,11.2675]
[1770849635824,5.8278228,79.971,79.935,11.2675]
[1770849636026,5.8278228,79.971,79.94,11.2668]
[1770849636833,9.42177015,79.97,79.94,11.2668]
[1770849637131,9.42177015,79.969,79.94,11.2668]
[1770849637327,5.8278228,79.971,79.94,11.2668]
[1770849637526,9.42149404,79.97,79.94,11.2668]
[1770849637728,9.42149404,79.969,79.94,11.2668]
[1770849638029,5.8278228,79.971,79.94,11.2668]
[1770849638333,9.42134526,79.97,79.94,11.2668]
[1770849638523,9.42134526,79.969,79.94,11.2668]
[1770849638728,5.8278228,79.971,79.94,11.2668]
[1770849638927,9.4205218,79.97,79.94,11.2668]
[1770849639134,5.8278228,79.971,79.94,11.2668]
[1770849639432,9.41981494,79.97,79.94,11.2668]
[1770849639632,5.8278228,79.971,79.94,11.2668]
[1770849639820,9.419815,79.97,79.94,11.2668]
[1770849640025,5.8278228,79.971,79.94,11.2668]
[1770849640226,9.42006463,79.97,79.94,11.2668]
[1770849640426,5.8278228,79.971,79.94,11.2668]
[1770849640624,9.41958722,79.97,79.94,11.2668]
[1770849640830,5.8278228,79.971,79.94,11.2668]
[1770849641029,9.41961022,79.97,79.94,11.2668]
[1770849641228,5.8278228,79.971,79.94,11.2668]
[1770849641432,9.4193903,79.97,79.94,11.2668]
[1770849641637,5.8278228,79.971,79.94,11.2668]
[1770849641836,9.41939875,79.97,79.94,11.2668]
[1770849642037,5.8278228,79.971,79.94,11.2668]
[1770849642326,9.41940177,79.97,79.94,11.2668]
[1770849642544,5.8278228,79.971,79.94,15.27627376]
[1770849642838,5.8278228,79.982,79.943,5.59985457]
[1770849643039,5.8278228,79.98,79.943,5.59985457]
[1770849643233,15.24773821,79.979,79.943,5.59985457]
[1770849643432,5.8278228,80.001,79.961,5.59985457]
[1770849643636,9.42150367,80.0,79.961,5.59985457]
[1770849643829,9.42150367,79.999,79.961,5.59985457]
[1770849644140,11.2589,79.997,79.961,5.59985457]
[1770849644337,9.42150367,79.996,79.961,5.59985457]
[1770849644534,5.8278228,80.001,79.961,5.59985457]
[1770849644840,9.41883859,80.0,79.961,5.59985457]
[1770849645131,9.41883859,79.999,79.961,5.59985457]
[1770849645338,9.41883859,79.998,79.961,5.59985457]
[1770849645540,9.41883859,79.997,79.961,5.59985457]
[1770849645738,22.87716221,80.039,79.896,175.3584]
[1770849645739,5.8278228,80.013,79.98,4.00947376]
[1770849646736,5.8278228,80.013,79.98,9.60932833]
[1770849648134,5.8278228,80.013,79.98,5.59985457]
[1770849649138,5.8278228,80.013,79.98,9.60932833]
[1770849649644,5.8278228,80.013,79.982,11.2609]
[1770849650237,5.8278228,80.013,79.975,11.2618]
[1770849651731,5.8278228,80.013,79.976,5.47332656]
[1770849651932,5.8278228,80.013,79.982,11.2608]
[1770849652739,5.8278228,80.013,79.975,5.47332656]
[1770849652740,5.8278228,80.013,79.975,16.73522656]
[1770849653548,5.63444164,80.006,79.953,5.47332656]
[1770849653749,5.63444164,79.999,79.953,5.47332656]
[1770849654848,5.63444164,79.997,79.955,11.2647]
[1770849655735,5.63444164,79.994,79.955,11.2647]
[1770849658143,5.63444164,79.991,79.955,11.2647]
[1770849659437,11.2599,79.99,79.955,11.2647]
[1770849660449,5.63444164,79.989,79.955,11.2647]
[1770849661050,11.2602,79.988,79.953,5.47332656]
[1770849661840,16.89464164,79.988,79.953,5.47332656]
[1770849664642,11.2615,79.979,79.953,5.47332656]
[1770849664950,11.2615,79.979,79.942,5.47332656]
[1770849667052,5.63444164,80.009,79.951,5.47332656]
[1770849667249,100.54,80.021,79.951,5.47332656]
[1770849667250,5.63444164,80.007,79.951,5.47332656]
[1770849667451,5.63444164,80.005,79.951,5.47332656]